[Event "Titled Tuesday Blitz October 5 2021"]
[White "Abdusattorov, Nodirbek"]
[Black "Warmerdam, Max"]
[WhiteFideId "14204118"]
[BlackFideId "1048104"]
[WhiteElo "3004"]
[BlackElo "2851"]
[Result "0-1"]
[Round "09"]
[TimeControl "180+1"]
[Date "2021.10.05"]
[WhiteClock "0:00:03"]
[BlackClock "0:00:22"]

1. c4 {[%clk 0:03:00]}  e6 {[%clk 0:02:58]} 2. Nf3 {[%clk 0:02:57]}  d5 {[%clk 0:02:59]} 3. g3 {[%clk 0:02:56]}  dxc4 {[%clk 0:02:53]} 4. Bg2 {[%clk 0:02:56]}  Nf6 {[%clk 0:02:51]} 5. O-O {[%clk 0:02:55]}  Nbd7 {[%clk 0:02:44]} 6. Na3 {[%clk 0:02:48]}  Bxa3 {[%clk 0:02:43]} 7. bxa3 {[%clk 0:02:48]}  O-O {[%clk 0:02:44]} 8. a4 {[%clk 0:02:43]}  e5 {[%clk 0:02:37]} 9. Qc2 {[%clk 0:02:37]}  Re8 {[%clk 0:02:37]} 10. Bb2 {[%clk 0:02:31]}  e4 {[%clk 0:02:34]} 11. Ng5 {[%clk 0:02:26]}  Qe7 {[%clk 0:02:26]} 12. Qxc4 {[%clk 0:02:22]}  h6 {[%clk 0:02:13]} 13. Nh3 {[%clk 0:02:13]}  Ne5 {[%clk 0:02:13]} 14. Qc3 {[%clk 0:02:07]}  Bf5 {[%clk 0:02:14]} 15. Nf4 {[%clk 0:02:01]}  Rad8 {[%clk 0:02:04]} 16. Rac1 {[%clk 0:01:50]}  c6 {[%clk 0:02:01]} 17. Rfd1 {[%clk 0:01:35]}  g5 {[%clk 0:01:58]} 18. d4 {[%clk 0:01:31]}  Neg4 {[%clk 0:01:39]} 19. h3 {[%clk 0:00:58]}  gxf4 {[%clk 0:01:37]} 20. hxg4 {[%clk 0:00:58]}  Nd5 {[%clk 0:01:38]} 21. Qa3 {[%clk 0:00:30]}  Qxa3 {[%clk 0:01:34]} 22. Bxa3 {[%clk 0:00:30]}  Bxg4 {[%clk 0:01:34]} 23. Rd2 {[%clk 0:00:29]}  e3 {[%clk 0:01:30]} 24. Rb2 {[%clk 0:00:29]}  exf2+ {[%clk 0:01:01]} 25. Kxf2 {[%clk 0:00:30]}  Re3 {[%clk 0:01:01]} 26. Bxd5 {[%clk 0:00:21]}  Rxd5 {[%clk 0:01:02]} 27. Bc5 {[%clk 0:00:14]}  b6 {[%clk 0:00:59]} 28. gxf4 {[%clk 0:00:15]}  Re4 {[%clk 0:00:49]} 29. Bb4 {[%clk 0:00:08]}  Rdxd4 {[%clk 0:00:49]} 30. Bc3 {[%clk 0:00:08]}  Rxf4+ {[%clk 0:00:46]} 31. Kg3 {[%clk 0:00:08]}  Rxa4 {[%clk 0:00:44]} 32. Rd1 {[%clk 0:00:08]}  Rfe4 {[%clk 0:00:37]} 33. Rd3 {[%clk 0:00:06]}  Bxe2 {[%clk 0:00:33]} 34. Rd8+ {[%clk 0:00:06]}  Kh7 {[%clk 0:00:34]} 35. Kf2 {[%clk 0:00:07]}  Bc4 {[%clk 0:00:31]} 36. Rh8+ {[%clk 0:00:04]}  Kg6 {[%clk 0:00:31]} 37. Rg8+ {[%clk 0:00:05]}  Kf5 {[%clk 0:00:30]} 38. Kg2 {[%clk 0:00:05]}  Bd5 {[%clk 0:00:29]} 39. Kh2 {[%clk 0:00:01]}  Rh4+ {[%clk 0:00:29]} 40. Kg3 {[%clk 0:00:02]}  Raf4 {[%clk 0:00:24]} 41. Rg4 {[%clk 0:00:03]}  Rfxg4+ {[%clk 0:00:22]} 0-1


[Site "https://www.chess.com"]

[Event "Titled Tuesday Blitz October 5 2021"]
[White "Aggelis, Nikolaos"]
[Black "Dudzinski, Pawel"]
[WhiteFideId "4213220"]
[BlackFideId "1117890"]
[WhiteElo "2154"]
[BlackElo "2193"]
[Result "1-0"]
[Round "09"]
[TimeControl "180+1"]
[Date "2021.10.05"]
[WhiteClock "0:00:47"]
[BlackClock "0:00:05"]

1. d4 {[%clk 0:02:39]}  d5 {[%clk 0:02:59]} 2. g3 {[%clk 0:02:39]}  e6 {[%clk 0:02:59]} 3. Bg2 {[%clk 0:02:39]}  Nf6 {[%clk 0:02:59]} 4. Nf3 {[%clk 0:02:40]}  c5 {[%clk 0:02:58]} 5. O-O {[%clk 0:02:41]}  Nc6 {[%clk 0:02:56]} 6. c4 {[%clk 0:02:40]}  cxd4 {[%clk 0:02:54]} 7. Nxd4 {[%clk 0:02:39]}  Be7 {[%clk 0:02:43]} 8. cxd5 {[%clk 0:02:39]}  Nxd5 {[%clk 0:02:42]} 9. Nxc6 {[%clk 0:02:37]}  bxc6 {[%clk 0:02:43]} 10. Qc2 {[%clk 0:02:33]}  Qb6 {[%clk 0:02:23]} 11. Nc3 {[%clk 0:02:29]}  Ba6 {[%clk 0:01:59]} 12. Re1 {[%clk 0:02:13]}  O-O {[%clk 0:01:46]} 13. a3 {[%clk 0:02:08]}  Nxc3 {[%clk 0:01:27]} 14. Qxc3 {[%clk 0:02:07]}  Rac8 {[%clk 0:01:07]} 15. Be3 {[%clk 0:02:06]}  Qc7 {[%clk 0:00:39]} 16. Bc5 {[%clk 0:02:04]}  Bxc5 {[%clk 0:00:34]} 17. Qxc5 {[%clk 0:02:05]}  Qb6 {[%clk 0:00:34]} 18. Qc3 {[%clk 0:01:59]}  c5 {[%clk 0:00:33]} 19. Bf3 {[%clk 0:01:57]}  Rfd8 {[%clk 0:00:32]} 20. Rec1 {[%clk 0:01:57]}  h6 {[%clk 0:00:24]} 21. h4 {[%clk 0:01:54]}  Rd7 {[%clk 0:00:21]} 22. Rd1 {[%clk 0:01:52]}  Rcd8 {[%clk 0:00:20]} 23. Rxd7 {[%clk 0:01:51]}  Rxd7 {[%clk 0:00:21]} 24. Rc1 {[%clk 0:01:51]}  Rc7 {[%clk 0:00:19]} 25. b4 {[%clk 0:01:44]}  c4 {[%clk 0:00:14]} 26. a4 {[%clk 0:01:43]}  Bb7 {[%clk 0:00:13]} 27. a5 {[%clk 0:01:36]}  Qb5 {[%clk 0:00:12]} 28. Bxb7 {[%clk 0:01:36]}  Qxb7 {[%clk 0:00:13]} 29. Qe5 {[%clk 0:01:33]}  Qc6 {[%clk 0:00:11]} 30. e4 {[%clk 0:01:22]}  Rb7 {[%clk 0:00:10]} 31. Qc5 {[%clk 0:01:19]}  Qxe4 {[%clk 0:00:06]} 32. Rxc4 {[%clk 0:01:13]}  Qb1+ {[%clk 0:00:06]} 33. Kg2 {[%clk 0:01:12]}  Kh7 {[%clk 0:00:06]} 34. Rf4 {[%clk 0:01:03]}  f6 {[%clk 0:00:05]} 35. a6 {[%clk 0:00:59]}  Rb6 {[%clk 0:00:05]} 36. Qe7 {[%clk 0:00:51]}  e5 {[%clk 0:00:05]} 37. Rg4 {[%clk 0:00:47]} 1-0


[Site "https://www.chess.com"]

[Event "Titled Tuesday Blitz October 5 2021"]
[White "Aloma Vidal, Robert"]
[Black "Aradhya, Garg"]
[WhiteFideId "2260409"]
[BlackFideId "25006746"]
[WhiteElo "2435"]
[BlackElo "2146"]
[Result "0-1"]
[Round "09"]
[TimeControl "180+1"]
[Date "2021.10.05"]
[WhiteClock "0:00:08"]
[BlackClock "0:00:07"]

1. e4 {[%clk 0:03:00]}  e5 {[%clk 0:02:59]} 2. Nf3 {[%clk 0:03:01]}  Nc6 {[%clk 0:02:59]} 3. Bc4 {[%clk 0:03:01]}  Bc5 {[%clk 0:02:58]} 4. b4 {[%clk 0:03:01]}  Bxb4 {[%clk 0:02:58]} 5. c3 {[%clk 0:03:02]}  Be7 {[%clk 0:02:58]} 6. d4 {[%clk 0:03:02]}  Na5 {[%clk 0:02:58]} 7. Bd3 {[%clk 0:03:02]}  d6 {[%clk 0:02:58]} 8. dxe5 {[%clk 0:03:03]}  dxe5 {[%clk 0:02:58]} 9. Nxe5 {[%clk 0:03:04]}  Nf6 {[%clk 0:02:58]} 10. O-O {[%clk 0:03:04]}  O-O {[%clk 0:02:58]} 11. Qc2 {[%clk 0:03:04]}  c5 {[%clk 0:02:52]} 12. f4 {[%clk 0:03:03]}  Nd7 {[%clk 0:02:12]} 13. Nxd7 {[%clk 0:02:46]}  Bxd7 {[%clk 0:02:13]} 14. e5 {[%clk 0:02:47]}  h6 {[%clk 0:02:09]} 15. f5 {[%clk 0:02:41]}  c4 {[%clk 0:02:04]} 16. Be4 {[%clk 0:02:38]}  Bc5+ {[%clk 0:02:04]} 17. Kh1 {[%clk 0:02:37]}  Qe7 {[%clk 0:02:03]} 18. Bf4 {[%clk 0:02:34]}  f6 {[%clk 0:01:51]} 19. e6 {[%clk 0:02:15]}  Bc6 {[%clk 0:01:51]} 20. Nd2 {[%clk 0:02:15]}  b5 {[%clk 0:01:41]} 21. a4 {[%clk 0:02:08]}  a6 {[%clk 0:01:39]} 22. axb5 {[%clk 0:02:06]}  axb5 {[%clk 0:01:39]} 23. Bxc6 {[%clk 0:01:53]}  Nxc6 {[%clk 0:01:38]} 24. Ne4 {[%clk 0:01:53]}  Rfd8 {[%clk 0:01:23]} 25. h3 {[%clk 0:01:50]}  Bb6 {[%clk 0:01:08]} 26. Rxa8 {[%clk 0:01:30]}  Rxa8 {[%clk 0:01:07]} 27. Nd6 {[%clk 0:01:30]}  Bc7 {[%clk 0:01:00]} 28. Nxb5 {[%clk 0:01:27]}  Bxf4 {[%clk 0:00:59]} 29. Rxf4 {[%clk 0:01:28]}  Ra1+ {[%clk 0:00:42]} 30. Kh2 {[%clk 0:01:28]}  Qc5 {[%clk 0:00:39]} 31. Nd4 {[%clk 0:01:05]}  Qd6 {[%clk 0:00:31]} 32. Qf2 {[%clk 0:01:01]}  Ne5 {[%clk 0:00:23]} 33. Qg3 {[%clk 0:00:56]}  Rc1 {[%clk 0:00:12]} 34. Nb5 {[%clk 0:00:28]}  Qb8 {[%clk 0:00:11]} 35. e7 {[%clk 0:00:24]}  Qxb5 {[%clk 0:00:11]} 36. Rd4 {[%clk 0:00:18]}  Kf7 {[%clk 0:00:06]} 37. Qe3 {[%clk 0:00:15]}  Qb1 {[%clk 0:00:03]} 38. Rd7 {[%clk 0:00:13]}  Rh1+ {[%clk 0:00:03]} 39. Kg3 {[%clk 0:00:13]}  Qe1+ {[%clk 0:00:03]} 40. Qxe1 {[%clk 0:00:13]}  Rxe1 {[%clk 0:00:04]} 41. e8=Q+ {[%clk 0:00:13]}  Kxe8 {[%clk 0:00:04]} 42. Rxg7 {[%clk 0:00:13]}  Nf7 {[%clk 0:00:05]} 43. Kf4 {[%clk 0:00:12]}  Rf1+ {[%clk 0:00:03]} 44. Ke4 {[%clk 0:00:11]}  Rc1 {[%clk 0:00:04]} 45. Kd4 {[%clk 0:00:11]}  Rf1 {[%clk 0:00:04]} 46. g4 {[%clk 0:00:11]}  Rf4+ {[%clk 0:00:05]} 47. Kd5 {[%clk 0:00:11]}  Kf8 {[%clk 0:00:05]} 48. Rg6 {[%clk 0:00:11]}  Ke7 {[%clk 0:00:06]} 49. Rg7 {[%clk 0:00:11]}  Rf3 {[%clk 0:00:06]} 50. h4 {[%clk 0:00:11]}  Rxc3 {[%clk 0:00:06]} 51. g5 {[%clk 0:00:10]}  hxg5 {[%clk 0:00:07]} 52. hxg5 {[%clk 0:00:11]}  fxg5 {[%clk 0:00:07]} 53. Kd4 {[%clk 0:00:10]}  Rf3 {[%clk 0:00:07]} 54. Kxc4 {[%clk 0:00:09]}  Kf6 {[%clk 0:00:07]} 55. Rh7 {[%clk 0:00:08]}  Ne5+ {[%clk 0:00:07]} 56. Kd5 {[%clk 0:00:09]}  Kxf5 {[%clk 0:00:06]} 57. Rh8 {[%clk 0:00:08]}  Rd3+ {[%clk 0:00:07]} 58. Kc5 {[%clk 0:00:09]}  Rd7 {[%clk 0:00:07]} 59. Rf8+ {[%clk 0:00:09]}  Rf7 {[%clk 0:00:07]} 60. Rh8 {[%clk 0:00:08]}  g4 {[%clk 0:00:07]} 0-1


[Site "https://www.chess.com"]

[Event "Titled Tuesday Blitz October 5 2021"]
[White "Al-Tarboush, Ward"]
[Black "Nenezic, Marko"]
[WhiteFideId "7601450"]
[BlackFideId "912123"]
[WhiteElo "2296"]
[BlackElo "2484"]
[Result "1-0"]
[Round "09"]
[TimeControl "180+1"]
[Date "2021.10.05"]
[WhiteClock "0:02:39"]
[BlackClock "0:02:47"]

1. e4 {[%clk 0:03:00]}  c5 {[%clk 0:02:56]} 2. Nf3 {[%clk 0:03:01]}  Nc6 {[%clk 0:02:56]} 3. d4 {[%clk 0:03:01]}  cxd4 {[%clk 0:02:56]} 4. Nxd4 {[%clk 0:03:02]}  Nf6 {[%clk 0:02:57]} 5. Nc3 {[%clk 0:03:03]}  e5 {[%clk 0:02:58]} 6. Ndb5 {[%clk 0:03:03]}  d6 {[%clk 0:02:58]} 7. Nd5 {[%clk 0:03:03]}  a6 {[%clk 0:02:59]} 8. Nbc7+ {[%clk 0:03:00]}  Kd7 {[%clk 0:02:53]} 9. Nxa8 {[%clk 0:03:00]}  Nxd5 {[%clk 0:02:53]} 10. exd5 {[%clk 0:02:57]}  Nd4 {[%clk 0:02:50]} 11. c3 {[%clk 0:02:54]}  Nf5 {[%clk 0:02:50]} 12. Qa4+ {[%clk 0:02:53]}  Ke7 {[%clk 0:02:48]} 13. g4 {[%clk 0:02:42]}  Nh4 {[%clk 0:02:47]} 14. Bg5+ {[%clk 0:02:39]} 1-0


[Site "https://www.chess.com"]

[Event "Titled Tuesday Blitz October 5 2021"]
[White "Alvarez Calzadilla, Jose Avelino"]
[Black "Vifleemskaia, Svetlana"]
[WhiteFideId "3526151"]
[BlackFideId "4129490"]
[WhiteElo "2537"]
[BlackElo "1945"]
[Result "0-1"]
[Round "09"]
[TimeControl "180+1"]
[Date "2021.10.05"]
[WhiteClock "0:00:02"]
[BlackClock "0:00:04"]

1. d4 {[%clk 0:03:00]}  Nf6 {[%clk 0:02:58]} 2. Nf3 {[%clk 0:02:58]}  d5 {[%clk 0:02:58]} 3. c4 {[%clk 0:02:59]}  dxc4 {[%clk 0:02:58]} 4. Nc3 {[%clk 0:02:58]}  a6 {[%clk 0:02:58]} 5. a4 {[%clk 0:02:54]}  e6 {[%clk 0:02:55]} 6. e3 {[%clk 0:02:53]}  c5 {[%clk 0:02:55]} 7. Bxc4 {[%clk 0:02:53]}  Nc6 {[%clk 0:02:53]} 8. O-O {[%clk 0:02:52]}  cxd4 {[%clk 0:02:51]} 9. exd4 {[%clk 0:02:51]}  Be7 {[%clk 0:02:52]} 10. Re1 {[%clk 0:02:51]}  O-O {[%clk 0:02:51]} 11. Bb3 {[%clk 0:02:48]}  Nb4 {[%clk 0:02:50]} 12. Ne5 {[%clk 0:02:43]}  Nbd5 {[%clk 0:02:49]} 13. Bc2 {[%clk 0:02:38]}  Nxc3 {[%clk 0:02:36]} 14. bxc3 {[%clk 0:02:38]}  Nd5 {[%clk 0:02:36]} 15. Qd3 {[%clk 0:02:34]}  g6 {[%clk 0:02:32]} 16. Bh6 {[%clk 0:02:33]}  Re8 {[%clk 0:02:28]} 17. Qf3 {[%clk 0:02:31]}  Bf6 {[%clk 0:02:13]} 18. Rad1 {[%clk 0:01:55]}  Qe7 {[%clk 0:02:06]} 19. c4 {[%clk 0:01:41]}  Nb4 {[%clk 0:02:04]} 20. Be4 {[%clk 0:01:40]}  Bg7 {[%clk 0:02:01]} 21. Bd2 {[%clk 0:01:33]}  a5 {[%clk 0:01:48]} 22. h4 {[%clk 0:01:28]}  f6 {[%clk 0:01:33]} 23. Nd3 {[%clk 0:01:13]}  f5 {[%clk 0:01:27]} 24. Bd5 {[%clk 0:01:12]}  Nxd3 {[%clk 0:01:10]} 25. Qxd3 {[%clk 0:01:09]}  Qxh4 {[%clk 0:01:09]} 26. Bc3 {[%clk 0:00:51]}  Bd7 {[%clk 0:00:53]} 27. Bxb7 {[%clk 0:00:44]}  Rab8 {[%clk 0:00:51]} 28. Rb1 {[%clk 0:00:44]}  Bxa4 {[%clk 0:00:48]} 29. g3 {[%clk 0:00:41]}  Qe7 {[%clk 0:00:38]} 30. Bd5 {[%clk 0:00:37]}  Rxb1 {[%clk 0:00:34]} 31. Qxb1 {[%clk 0:00:37]}  Qd7 {[%clk 0:00:29]} 32. Bf3 {[%clk 0:00:22]}  Bxd4 {[%clk 0:00:26]} 33. Bxa5 {[%clk 0:00:17]}  Qd6 {[%clk 0:00:19]} 34. Kg2 {[%clk 0:00:16]}  Bc6 {[%clk 0:00:15]} 35. Qd3 {[%clk 0:00:13]}  e5 {[%clk 0:00:14]} 36. Bxc6 {[%clk 0:00:09]}  Qxc6+ {[%clk 0:00:13]} 37. Kg1 {[%clk 0:00:09]}  Qc5 {[%clk 0:00:13]} 38. Re2 {[%clk 0:00:03]}  Qxa5 {[%clk 0:00:12]} 39. c5 {[%clk 0:00:03]}  Qxc5 {[%clk 0:00:11]} 40. Qb3+ {[%clk 0:00:04]}  Kg7 {[%clk 0:00:11]} 41. Qb7+ {[%clk 0:00:04]}  Re7 {[%clk 0:00:11]} 42. Qb8 {[%clk 0:00:04]}  Qc3 {[%clk 0:00:09]} 43. Kg2 {[%clk 0:00:03]}  Qc6+ {[%clk 0:00:09]} 44. Kg1 {[%clk 0:00:03]}  Qb7 {[%clk 0:00:07]} 45. Qd8 {[%clk 0:00:03]}  Qd7 {[%clk 0:00:07]} 46. Qb8 {[%clk 0:00:03]}  e4 {[%clk 0:00:07]} 47. Kg2 {[%clk 0:00:03]}  e3 {[%clk 0:00:07]} 48. Qb4 {[%clk 0:00:02]}  Qd5+ {[%clk 0:00:06]} 49. Kf1 {[%clk 0:00:02]}  Rc7 {[%clk 0:00:05]} 50. Kg1 {[%clk 0:00:01]}  Rc1+ {[%clk 0:00:05]} 51. Re1 {[%clk 0:00:01]}  Rxe1+ {[%clk 0:00:04]} 52. Qxe1 {[%clk 0:00:02]}  exf2+ {[%clk 0:00:04]} 0-1


[Site "https://www.chess.com"]

[Event "Titled Tuesday Blitz October 5 2021"]
[White "Avila Pavas, Santiago"]
[Black "Holt, Conrad"]
[WhiteFideId "4437128"]
[BlackFideId "2034387"]
[WhiteElo "2651"]
[BlackElo "2866"]
[Result "1-0"]
[Round "09"]
[TimeControl "180+1"]
[Date "2021.10.05"]
[WhiteClock "0:00:18"]
[BlackClock "0:00:03"]

1. d4 {[%clk 0:02:36]}  d5 {[%clk 0:02:59]} 2. Bf4 {[%clk 0:02:36]}  c5 {[%clk 0:02:58]} 3. e3 {[%clk 0:02:36]}  Nc6 {[%clk 0:02:59]} 4. c3 {[%clk 0:02:35]}  Bf5 {[%clk 0:02:57]} 5. Qb3 {[%clk 0:02:34]}  Qd7 {[%clk 0:02:56]} 6. Nf3 {[%clk 0:02:25]}  e6 {[%clk 0:02:52]} 7. Bb5 {[%clk 0:02:23]}  f6 {[%clk 0:02:42]} 8. Nbd2 {[%clk 0:02:12]}  a6 {[%clk 0:02:39]} 9. Be2 {[%clk 0:01:58]}  c4 {[%clk 0:02:38]} 10. Qd1 {[%clk 0:01:58]}  g5 {[%clk 0:02:37]} 11. Bg3 {[%clk 0:01:56]}  h5 {[%clk 0:02:37]} 12. h3 {[%clk 0:01:37]}  h4 {[%clk 0:02:32]} 13. Bh2 {[%clk 0:01:36]}  b5 {[%clk 0:02:31]} 14. a4 {[%clk 0:01:35]}  b4 {[%clk 0:02:31]} 15. e4 {[%clk 0:01:28]}  dxe4 {[%clk 0:02:29]} 16. Ng1 {[%clk 0:01:28]}  e5 {[%clk 0:02:21]} 17. Nxc4 {[%clk 0:01:25]}  bxc3 {[%clk 0:02:11]} 18. bxc3 {[%clk 0:01:25]}  Rd8 {[%clk 0:01:54]} 19. Bh5+ {[%clk 0:01:15]}  Ke7 {[%clk 0:01:53]} 20. dxe5 {[%clk 0:01:15]}  Qe6 {[%clk 0:01:51]} 21. Qe2 {[%clk 0:00:54]}  Rxh5 {[%clk 0:01:46]} 22. Qxh5 {[%clk 0:00:54]}  Qxc4 {[%clk 0:01:45]} 23. Ne2 {[%clk 0:00:55]}  Qf7 {[%clk 0:01:23]} 24. exf6+ {[%clk 0:00:55]}  Kxf6 {[%clk 0:01:22]} 25. Qxf7+ {[%clk 0:00:46]}  Kxf7 {[%clk 0:01:23]} 26. O-O {[%clk 0:00:46]}  Bc5 {[%clk 0:01:16]} 27. Rfd1 {[%clk 0:00:45]}  Rxd1+ {[%clk 0:01:08]} 28. Rxd1 {[%clk 0:00:46]}  Nf6 {[%clk 0:01:09]} 29. Nd4 {[%clk 0:00:46]}  Bxd4 {[%clk 0:01:04]} 30. cxd4 {[%clk 0:00:47]}  Ke6 {[%clk 0:01:04]} 31. Rb1 {[%clk 0:00:38]}  Nd5 {[%clk 0:01:01]} 32. Rb7 {[%clk 0:00:38]}  Nxd4 {[%clk 0:00:56]} 33. Ra7 {[%clk 0:00:37]}  Nb4 {[%clk 0:00:55]} 34. Rg7 {[%clk 0:00:32]}  Kf6 {[%clk 0:00:45]} 35. Rb7 {[%clk 0:00:31]}  Ndc6 {[%clk 0:00:39]} 36. Bd6 {[%clk 0:00:31]}  Nd5 {[%clk 0:00:35]} 37. Bc5 {[%clk 0:00:24]}  Bc8 {[%clk 0:00:26]} 38. Rh7 {[%clk 0:00:22]}  a5 {[%clk 0:00:11]} 39. Rh8 {[%clk 0:00:21]}  Be6 {[%clk 0:00:11]} 40. Ra8 {[%clk 0:00:20]}  Ndb4 {[%clk 0:00:10]} 41. Bb6 {[%clk 0:00:16]}  Nd3 {[%clk 0:00:07]} 42. Bxa5 {[%clk 0:00:16]}  Nxa5 {[%clk 0:00:06]} 43. Rxa5 {[%clk 0:00:17]}  Nb2 {[%clk 0:00:06]} 44. Ra8 {[%clk 0:00:16]}  Ke5 {[%clk 0:00:06]} 45. a5 {[%clk 0:00:16]}  Kd6 {[%clk 0:00:05]} 46. a6 {[%clk 0:00:16]}  Kc7 {[%clk 0:00:04]} 47. a7 {[%clk 0:00:17]}  Bd5 {[%clk 0:00:03]} 48. Rb8 {[%clk 0:00:17]}  Nd3 {[%clk 0:00:03]} 49. a8=Q {[%clk 0:00:17]}  Bxa8 {[%clk 0:00:03]} 50. Rxa8 {[%clk 0:00:18]} 1-0


[Site "https://www.chess.com"]

[Event "Titled Tuesday Blitz October 5 2021"]
[White "Baches Garcia, Guillermo"]
[Black "Horobetz, Graham"]
[WhiteFideId "2209764"]
[BlackFideId "2047322"]
[WhiteElo "2495"]
[BlackElo "2620"]
[Result "0-1"]
[Round "09"]
[TimeControl "180+1"]
[Date "2021.10.05"]
[WhiteClock "0:00:03"]
[BlackClock "0:00:09"]

1. e4 {[%clk 0:03:00]}  c5 {[%clk 0:02:57]} 2. Nf3 {[%clk 0:03:01]}  d6 {[%clk 0:02:57]} 3. d4 {[%clk 0:02:59]}  cxd4 {[%clk 0:02:58]} 4. Qxd4 {[%clk 0:02:59]}  Nc6 {[%clk 0:02:57]} 5. Bb5 {[%clk 0:02:58]}  Bd7 {[%clk 0:02:58]} 6. Qd3 {[%clk 0:02:58]}  Nf6 {[%clk 0:02:58]} 7. c4 {[%clk 0:02:59]}  a6 {[%clk 0:02:58]} 8. Bxc6 {[%clk 0:02:58]}  Bxc6 {[%clk 0:02:58]} 9. Nc3 {[%clk 0:02:58]}  b5 {[%clk 0:02:58]} 10. b3 {[%clk 0:02:40]}  bxc4 {[%clk 0:02:51]} 11. bxc4 {[%clk 0:02:38]}  g6 {[%clk 0:02:37]} 12. O-O {[%clk 0:02:36]}  Bg7 {[%clk 0:02:37]} 13. Rb1 {[%clk 0:02:33]}  O-O {[%clk 0:02:33]} 14. Nd5 {[%clk 0:02:28]}  Nd7 {[%clk 0:02:30]} 15. Bb2 {[%clk 0:02:21]}  Nc5 {[%clk 0:02:01]} 16. Qe3 {[%clk 0:02:17]}  Bxd5 {[%clk 0:01:39]} 17. Bxg7 {[%clk 0:02:05]}  Kxg7 {[%clk 0:01:04]} 18. cxd5 {[%clk 0:01:54]}  Qa5 {[%clk 0:00:58]} 19. e5 {[%clk 0:01:49]}  Qxa2 {[%clk 0:00:53]} 20. Rbd1 {[%clk 0:01:23]}  Rab8 {[%clk 0:00:46]} 21. Qf4 {[%clk 0:01:14]}  Qa4 {[%clk 0:00:34]} 22. Nd4 {[%clk 0:00:56]}  Rb4 {[%clk 0:00:28]} 23. exd6 {[%clk 0:00:50]}  exd6 {[%clk 0:00:28]} 24. Qxd6 {[%clk 0:00:51]}  Ne4 {[%clk 0:00:14]} 25. Qe5+ {[%clk 0:00:38]}  Nf6 {[%clk 0:00:14]} 26. d6 {[%clk 0:00:29]}  Re8 {[%clk 0:00:13]} 27. Qc5 {[%clk 0:00:21]}  Rc4 {[%clk 0:00:08]} 28. Qb6 {[%clk 0:00:17]}  Re4 {[%clk 0:00:06]} 29. Nf3 {[%clk 0:00:12]}  Re6 {[%clk 0:00:05]} 30. Qb8 {[%clk 0:00:11]}  Rb4 {[%clk 0:00:05]} 31. Qc7 {[%clk 0:00:10]}  Qd7 {[%clk 0:00:05]} 32. Qxd7 {[%clk 0:00:10]}  Nxd7 {[%clk 0:00:06]} 33. Rd2 {[%clk 0:00:10]}  Rb6 {[%clk 0:00:06]} 34. Rfd1 {[%clk 0:00:10]}  a5 {[%clk 0:00:06]} 35. Ng5 {[%clk 0:00:10]}  Rf6 {[%clk 0:00:06]} 36. Ne4 {[%clk 0:00:10]}  Re6 {[%clk 0:00:07]} 37. Nc3 {[%clk 0:00:10]}  Rc6 {[%clk 0:00:06]} 38. Nb5 {[%clk 0:00:10]}  Rc5 {[%clk 0:00:06]} 39. Nc7 {[%clk 0:00:10]}  a4 {[%clk 0:00:06]} 40. Nxe6+ {[%clk 0:00:10]}  fxe6 {[%clk 0:00:07]} 41. Ra2 {[%clk 0:00:10]}  Rc4 {[%clk 0:00:06]} 42. g3 {[%clk 0:00:09]}  Kf6 {[%clk 0:00:06]} 43. Rda1 {[%clk 0:00:09]}  Nc5 {[%clk 0:00:06]} 44. Rd1 {[%clk 0:00:09]}  Nd7 {[%clk 0:00:05]} 45. Rb2 {[%clk 0:00:09]}  e5 {[%clk 0:00:06]} 46. Rb7 {[%clk 0:00:08]}  Ke6 {[%clk 0:00:06]} 47. Ra7 {[%clk 0:00:09]}  g5 {[%clk 0:00:05]} 48. Ra1 {[%clk 0:00:08]}  Nc5 {[%clk 0:00:04]} 49. d7 {[%clk 0:00:08]}  Ke7 {[%clk 0:00:03]} 50. d8=Q+ {[%clk 0:00:06]}  Kxd8 {[%clk 0:00:04]} 51. Rb1 {[%clk 0:00:06]}  Nb3 {[%clk 0:00:02]} 52. Rd1+ {[%clk 0:00:06]}  Kc8 {[%clk 0:00:03]} 53. Rdd7 {[%clk 0:00:06]}  Kb8 {[%clk 0:00:03]} 54. Rxh7 {[%clk 0:00:06]}  Nc5 {[%clk 0:00:03]} 55. Raf7 {[%clk 0:00:05]}  Nb3 {[%clk 0:00:02]} 56. Rh8+ {[%clk 0:00:06]}  Rc8 {[%clk 0:00:03]} 57. Rhh7 {[%clk 0:00:06]}  Rc1+ {[%clk 0:00:02]} 58. Kg2 {[%clk 0:00:06]}  Rc3 {[%clk 0:00:03]} 59. Rb7+ {[%clk 0:00:06]}  Kc8 {[%clk 0:00:03]} 60. Ra7 {[%clk 0:00:06]}  Nc5 {[%clk 0:00:04]} 61. Rhc7+ {[%clk 0:00:06]}  Kb8 {[%clk 0:00:04]} 62. Rh7 {[%clk 0:00:06]}  a3 {[%clk 0:00:04]} 63. Ra5 {[%clk 0:00:05]}  Nb3 {[%clk 0:00:03]} 64. Raa7 {[%clk 0:00:04]}  Nc5 {[%clk 0:00:03]} 65. Rag7 {[%clk 0:00:04]}  Ne6 {[%clk 0:00:03]} 66. Rh8+ {[%clk 0:00:05]}  Rc8 {[%clk 0:00:03]} 67. Rxc8+ {[%clk 0:00:03]}  Kxc8 {[%clk 0:00:04]} 68. Rg6 {[%clk 0:00:03]}  a2 {[%clk 0:00:03]} 69. Rxe6 {[%clk 0:00:04]}  a1=Q {[%clk 0:00:04]} 70. Rg6 {[%clk 0:00:04]}  Qd4 {[%clk 0:00:04]} 71. Rxg5 {[%clk 0:00:05]}  Qe4+ {[%clk 0:00:05]} 72. Kg1 {[%clk 0:00:05]}  Qd4 {[%clk 0:00:04]} 73. h4 {[%clk 0:00:05]}  Kd7 {[%clk 0:00:05]} 74. Kg2 {[%clk 0:00:05]}  Ke6 {[%clk 0:00:06]} 75. Kg1 {[%clk 0:00:04]}  Kf6 {[%clk 0:00:06]} 76. Kg2 {[%clk 0:00:04]}  e4 {[%clk 0:00:06]} 77. Kg1 {[%clk 0:00:05]}  Qd2 {[%clk 0:00:07]} 78. Kf1 {[%clk 0:00:04]}  Qd1+ {[%clk 0:00:07]} 79. Kg2 {[%clk 0:00:05]}  Qf3+ {[%clk 0:00:07]} 80. Kg1 {[%clk 0:00:05]}  Qe2 {[%clk 0:00:08]} 81. Rg8 {[%clk 0:00:03]}  Kf7 {[%clk 0:00:07]} 82. Rg5 {[%clk 0:00:03]}  Kf6 {[%clk 0:00:07]} 83. Rg8 {[%clk 0:00:03]}  Qd1+ {[%clk 0:00:08]} 84. Kg2 {[%clk 0:00:03]}  Qd5 {[%clk 0:00:08]} 85. Rf8+ {[%clk 0:00:02]}  Kg7 {[%clk 0:00:08]} 86. Rf4 {[%clk 0:00:02]}  e3+ {[%clk 0:00:08]} 87. Kf1 {[%clk 0:00:03]}  Qd1+ {[%clk 0:00:08]} 88. Kg2 {[%clk 0:00:03]}  e2 {[%clk 0:00:09]} 0-1


[Site "https://www.chess.com"]

[Event "Titled Tuesday Blitz October 5 2021"]
[White "Begmuratov, Khumoyun"]
[Black "King, Alexander"]
[WhiteFideId "14210207"]
[BlackFideId "2063620"]
[WhiteElo "1948"]
[BlackElo "2306"]
[Result "1-0"]
[Round "09"]
[TimeControl "180+1"]
[Date "2021.10.05"]
[WhiteClock "0:01:52"]
[BlackClock "0:00:01"]

1. e4 {[%clk 0:03:00]}  c5 {[%clk 0:02:59]} 2. Nf3 {[%clk 0:03:00]}  e6 {[%clk 0:02:59]} 3. d4 {[%clk 0:03:00]}  cxd4 {[%clk 0:03:00]} 4. Nxd4 {[%clk 0:03:00]}  a6 {[%clk 0:03:01]} 5. Nc3 {[%clk 0:03:00]}  Qc7 {[%clk 0:03:01]} 6. Be2 {[%clk 0:02:57]}  b5 {[%clk 0:03:01]} 7. O-O {[%clk 0:02:56]}  b4 {[%clk 0:03:01]} 8. Nb1 {[%clk 0:02:51]}  Bb7 {[%clk 0:03:00]} 9. Bd3 {[%clk 0:02:50]}  Nf6 {[%clk 0:02:55]} 10. Qe2 {[%clk 0:02:49]}  Bd6 {[%clk 0:02:35]} 11. Nf3 {[%clk 0:02:29]}  Nc6 {[%clk 0:02:33]} 12. Nbd2 {[%clk 0:02:24]}  Ng4 {[%clk 0:02:09]} 13. h3 {[%clk 0:02:11]}  h5 {[%clk 0:02:02]} 14. Nc4 {[%clk 0:02:07]}  Bf4 {[%clk 0:01:24]} 15. Bxf4 {[%clk 0:02:03]}  Qxf4 {[%clk 0:01:24]} 16. g3 {[%clk 0:02:04]}  Qc7 {[%clk 0:00:48]} 17. hxg4 {[%clk 0:02:02]}  hxg4 {[%clk 0:00:49]} 18. Nh2 {[%clk 0:02:01]}  f5 {[%clk 0:00:03]} 19. exf5 {[%clk 0:01:57]}  O-O-O {[%clk 0:00:02]} 20. Qxg4 {[%clk 0:01:54]}  d5 {[%clk 0:00:01]} 21. fxe6 {[%clk 0:01:52]} 1-0


[Site "https://www.chess.com"]